bitfinex/quotes_SOLUSD_20241210
["timestamp","ask_amount","ask_price","bid_price","bid_amount"]
[1733846525835,6.83049292,207.57,207.54,38.65554235]
[1733846525996,6.83049292,207.57,207.49,0.72227768]
[1733846526197,0.6795407,207.73,207.47,13.0005]
[1733846526421,0.95561362,207.73,207.52,15.0]
[1733846526623,0.6795407,207.73,207.56,38.65554235]
[1733846526820,0.6795407,207.73,207.63,38.65554235]
[1733846527021,0.6795407,207.73,207.67,38.65554235]
[1733846527238,0.6795407,207.73,207.72,38.65554235]
[1733846527541,0.6795407,207.73,207.69,23.776884]
[1733846527704,0.6795407,207.73,207.66,38.65554235]
[1733846527911,0.6795407,207.73,207.7,38.65554235]
[1733846528135,0.6795407,207.73,207.72,38.65554235]
[1733846528336,0.27607292,207.94,207.76,15.0]
[1733846528540,0.6795407,207.96,207.79,38.65554235]
[1733846528844,0.6795407,207.96,207.84,312.0]
[1733846529139,0.6795407,207.96,207.89,38.65554235]
[1733846529307,0.6795407,207.96,207.91,38.65554235]
[1733846529512,0.27607292,208.13,207.92,0.72101226]
[1733846529513,15.27607292,208.13,207.92,0.72101226]
[1733846529741,15.27607292,208.13,207.88,0.72106448]
[1733846529742,0.7349209,208.12,207.88,0.72106448]
[1733846529905,0.27607292,208.11,207.88,38.65554235]
[1733846530105,0.27607292,208.11,207.86,39.37676219]
[1733846530306,0.27607292,208.11,207.92,38.65554235]
[1733846530507,0.7349209,208.12,207.98,38.65554235]
[1733846530707,0.7349209,208.12,208.02,38.65554235]
[1733846531040,0.7349209,208.12,208.01,15.0]
[1733846531041,0.7349209,208.12,208.08,53.65554235]
[1733846531225,0.7349209,208.12,208.11,15.0]
[1733846531537,0.7349209,208.12,208.11,38.776884]
[1733846531738,39.50300199,208.47,208.11,38.776884]
[1733846531739,2.52510119,208.44,208.21,38.65554235]
[1733846531909,3.97296019,208.45,208.08,38.65554235]
[1733846531910,0.87610925,208.43,208.17,53.776884]
[1733846532245,15.0,208.37,208.14,312.0]
[1733846532539,15.0,208.34,208.06,30.0]
[1733846532739,15.0,208.36,208.01,23.60647299]
[1733846532910,6.49459053,208.33,208.03,38.65554235]
[1733846533113,15.876109,208.36,208.03,38.65554235]
[1733846533114,15.876109,208.36,208.17,38.65554235]
[1733846533307,15.0,208.41,208.12,30.0]
[1733846533509,0.87610925,208.41,208.14,38.65554235]
[1733846533737,0.87610925,208.41,208.08,68.65554235]
[1733846533738,15.87610925,208.41,208.13,15.0]
[1733846533942,6.49806138,208.45,208.21,15.0]
[1733846534141,15.87610925,208.41,208.23,38.65554235]
[1733846534339,0.87610925,208.41,208.23,38.65554235]
[1733846534507,0.87610925,208.41,208.25,38.65554235]
[1733846534725,0.87610925,208.41,208.29,38.65554235]
[1733846535424,0.87610925,208.41,208.37,38.65554235]
[1733846535622,0.87610925,208.41,208.35,38.65554235]
[1733846535825,15.0,208.47,208.29,30.0]
[1733846536024,1.0976882,208.51,208.18,30.0]
[1733846536228,15.0,208.47,208.2,38.65554235]
[1733846536543,15.0,208.42,208.18,30.0]
[1733846536849,30.0,208.43,208.12,46.64544235]
[1733846537009,20.0,208.38,208.14,38.65554235]
[1733846537214,20.0,208.34,208.22,38.65554235]
[1733846537411,20.0,208.34,208.2,38.65554235]
[1733846537745,0.87610925,208.5,208.12,46.64544235]
[1733846537746,15.0,208.38,208.12,46.64544235]
[1733846537916,30.0,208.36,208.08,38.65554235]
[1733846538107,30.0,208.3,208.04,2.85414759]
[1733846538308,15.0,208.19,208.04,2.85414759]
[1733846538529,20.0,208.14,207.85,30.0]
[1733846538738,23.776884,208.09,207.86,0.87971299]
[1733846538918,20.0,208.06,207.86,0.87971299]
[1733846539117,20.0,208.02,207.86,0.87971299]
[1733846539317,23.776884,208.01,207.86,0.87971299]
[1733846539521,15.0,208.09,207.86,39.53525534]
[1733846539731,20.0,208.05,207.86,39.53525534]
[1733846539936,20.0,208.05,207.91,38.65554235]
[1733846540142,6.49806138,208.23,207.84,38.65554235]
[1733846540143,20.0,208.18,207.98,15.0]
[1733846540308,20.0,208.18,207.84,68.65554235]
[1733846540309,15.0,208.3,208.05,15.0]
[1733846540514,15.0,208.32,208.07,38.65554235]
[1733846540736,33.32886138,208.36,208.09,38.65554235]
[1733846540939,16.21726512,208.35,208.08,0.87878288]
[1733846541121,15.0,208.33,208.08,0.87878288]
[1733846541326,15.0,208.39,208.14,33.41096735]
[1733846541649,6.49806138,208.41,208.18,33.41096735]
[1733846542017,15.0,208.44,208.29,312.0]
[1733846542217,15.0,208.46,208.29,312.0]
[1733846542543,2.92684725,208.41,208.19,0.43474912]
[1733846542721,2.92684725,208.41,208.2,0.87827638]
[1733846542922,2.92684725,208.41,208.2,34.28924373]
[1733846543241,2.92684725,208.41,208.28,33.41096735]
[1733846543417,1.0976882,208.51,208.26,33.41096735]
[1733846543627,2.83888899,208.45,208.27,0.87798119]
[1733846544139,1.0976882,208.51,208.33,33.41096735]
[1733846544340,1.0976882,208.51,208.31,33.41096735]
[1733846544539,1.0976882,208.51,208.28,0.43026312]
[1733846544540,2.86743937,208.49,208.28,33.84123047]
[1733846544765,2.86743937,208.49,208.32,0.87777046]
[1733846544918,15.0,208.45,208.32,7.046e-05]
[1733846545123,17.43800109,208.44,208.28,0.43026312]
[1733846545321,2.43800109,208.44,208.16,33.41096735]
[1733846545512,2.43800109,208.44,208.2,33.41096735]
[1733846545735,1.0976882,208.51,208.24,48.41096735]
[1733846545938,1.0976882,208.51,208.28,33.41096735]
[1733846546250,2.95340947,208.46,208.26,33.41096735]
[1733846546458,2.95340947,208.46,208.21,30.0]
[1733846546459,1.0976882,208.51,208.31,33.41096735]
[1733846546642,1.0976882,208.51,208.35,33.41096735]
[1733846546839,3.95484096,208.51,208.31,33.41096735]
[1733846547067,3.95484096,208.51,208.27,48.41096735]
[1733846547251,3.95484096,208.51,208.27,33.41096735]
[1733846547561,1.0976882,208.51,208.39,33.41096735]
[1733846547773,1.0976882,208.51,208.41,33.41096735]
[1733846547939,1.0976882,208.51,208.47,33.41096735]
[1733846548139,1.0976882,208.51,208.42,15.0]
[1733846548140,1.0976882,208.51,208.5,15.0]
[1733846548355,1.0976882,208.51,208.49,33.41096735]
[1733846548577,1.0976882,208.51,208.46,0.09522124]
[1733846549145,1.0976882,208.51,208.46,2.124e-05]
[1733846549342,15.0,208.49,208.22,33.41096735]
[1733846549541,15.0,208.49,208.13,30.0]
[1733846549542,15.0,208.4,208.12,63.41096735]
[1733846549843,15.0,208.43,208.07,2.80859426]
[1733846549844,15.0,208.36,208.07,2.80859426]
[1733846550075,15.0,208.34,208.06,46.54866735]
[1733846550260,20.0,208.28,208.0,33.41096735]
[1733846550459,23.776884,208.23,208.02,0.05275979]
[1733846550765,5.19022531,208.33,208.02,0.05275979]
[1733846550766,15.0,208.26,208.02,0.05275979]
[1733846550963,20.0,208.22,208.02,0.05275979]
[1733846551142,20.0,208.18,208.02,0.05275979]
[1733846551341,20.0,208.14,208.02,0.05275979]
[1733846551572,20.0,208.25,208.02,0.05275979]
[1733846551771,23.776884,208.2,208.02,0.05275979]
[1733846551981,23.776884,208.15,208.03,0.8789941]
[1733846552147,20.0,208.08,208.03,0.8789941]
[1733846552349,20.0,208.08,207.83,15.0]
[1733846552350,20.0,208.07,207.83,33.41096735]
[1733846552647,20.0,207.99,207.77,33.41096735]
[1733846552863,20.0,207.99,207.75,48.41096735]
[1733846553073,20.0,207.91,207.76,0.88013642]
[1733846553455,15.0,208.01,207.79,33.41096735]
[1733846553649,20.0,208.02,207.81,33.41096735]
[1733846553848,2.94151646,208.03,207.83,33.41096735]
[1733846554064,15.0,208.16,207.87,33.41096735]
[1733846554267,15.0,208.18,207.91,33.41096735]
[1733846554547,15.0,208.24,208.0,33.41096735]
[1733846554766,15.0,208.28,208.0,345.41096735]
[1733846555071,2.92807608,208.17,208.0,345.41096735]
[1733846555277,6.49806138,208.31,207.96,57.3723]
[1733846555278,15.0,208.3,208.02,33.41096735]
[1733846555477,2.91018148,208.21,208.04,33.41096735]
[1733846555677,2.91018148,208.21,208.01,0.04456221]
[1733846556175,2.91018148,208.21,208.07,33.41096735]
[1733846556384,15.0,208.31,208.07,33.41096735]
[1733846556689,15.0,208.34,208.01,15.04456221]
[1733846556690,2.89834795,208.23,208.09,33.41096735]
[1733846556863,15.0,208.31,208.05,33.41096735]
[1733846557046,2.92374674,208.25,208.08,23.776884]
[1733846557371,35.7532,208.47,208.16,33.41096735]
[1733846557570,110.32424047,208.5,208.22,33.41096735]
[1733846557571,21.49806138,208.49,208.22,33.41096735]
[1733846557752,2.89026375,208.39,208.22,33.41096735]
[1733846557946,2.89026375,208.39,208.18,15.0]
[1733846558153,15.0,208.56,208.29,33.41096735]
[1733846558369,2.85278776,208.41,208.23,33.41096735]
[1733846558567,2.85278776,208.41,208.14,32.88824582]
[1733846558775,17.85278776,208.41,208.09,41.71356735]
[1733846558972,28.05153597,208.4,208.07,33.41096735]
[1733846559282,11.8308,208.4,208.15,33.41096735]
[1733846559574,2.85278776,208.41,208.21,48.41096735]
[1733846559780,2.85278776,208.41,208.25,33.41096735]
[1733846560000,12.9284882,208.51,208.27,33.41096735]
[1733846560157,1.0976882,208.51,208.33,33.41096735]
[1733846560349,1.0976882,208.51,208.29,33.41096735]
[1733846560582,2.94936051,208.48,208.27,33.41096735]
[1733846560761,1.0976882,208.51,208.33,33.41096735]
[1733846560961,1.0976882,208.51,208.31,33.41096735]
[1733846561182,1.0976882,208.51,208.35,33.41096735]
[1733846561392,1.0976882,208.51,208.37,312.0]
[1733846561598,1.0976882,208.51,208.4,33.41096735]
[1733846561751,1.0976882,208.51,208.37,312.0]
[1733846561952,1.0976882,208.51,208.37,23.776884]
[1733846562175,1.0976882,208.51,208.29,57.18785135]
[1733846562357,1.0976882,208.51,208.29,33.41096735]
[1733846562556,1.0976882,208.51,208.37,33.41096735]
[1733846562761,1.0976882,208.51,208.45,33.41096735]
[1733846562953,1.0976882,208.51,208.43,15.0]
[1733846562954,1.0976882,208.51,208.43,33.41096735]
[1733846563157,1.0976882,208.51,208.38,2.83648081]
[1733846563385,1.0976882,208.51,208.34,35.92734223]
[1733846563657,1.0976882,208.51,208.29,8.3026]
[1733846563881,1.0976882,208.51,208.25,30.0]
[1733846564061,1.0976882,208.51,208.3,35.92734223]
[1733846564259,23.776884,208.5,208.21,30.0]
[1733846564456,23.776884,208.5,208.26,35.92734223]
[1733846564663,23.776884,208.5,208.21,45.0]
[1733846564866,23.776884,208.5,208.3,35.92734223]
[1733846565091,23.776884,208.5,208.19,27.0161]
[1733846565269,15.0,208.49,208.24,35.92734223]
[1733846565456,20.0,208.38,208.16,43.59644223]
[1733846565661,20.0,208.34,208.16,43.59644223]
[1733846565959,20.0,208.34,208.14,35.92734223]
[1733846566174,20.0,208.34,207.98,30.0]
[1733846566175,23.776884,208.29,207.98,30.0]
[1733846566359,20.0,208.22,207.98,35.92734223]
[1733846566561,23.776884,208.21,207.98,35.92734223]
[1733846566778,23.776884,208.17,207.96,35.92734223]
[1733846566992,20.0,208.14,207.94,35.92734223]
[1733846567286,20.0,208.14,207.96,35.92734223]
[1733846567479,20.0,208.14,207.97,0.720759]
[1733846567683,15.27607292,208.24,208.02,35.92734223]
[1733846567684,0.27607292,208.24,208.02,35.92734223]
[1733846567993,0.27607292,208.3,208.06,35.92734223]
[1733846568159,0.27607292,208.3,208.07,0.7202569]
[1733846568369,0.27607292,208.3,208.02,312.0]
[1733846568370,15.27607292,208.34,208.06,35.92734223]
[1733846568572,0.27607292,208.34,208.07,0.72042974]
[1733846568766,0.27607292,208.34,208.1,35.92734223]
[1733846568967,0.27607292,208.36,208.18,35.92734223]
[1733846569200,26.8308,208.48,208.14,30.0]
[1733846569201,2.84008752,208.41,208.22,35.92734223]
[1733846569363,15.27607292,208.4,208.12,35.92734223]
[1733846569565,0.27607292,208.4,208.13,23.776884]
[1733846569770,0.27607292,208.4,208.16,35.92734223]
[1733846569969,0.27607292,208.4,208.15,23.776884]
[1733846569970,2.84008752,208.41,208.24,35.92734223]
[1733846570191,2.84008752,208.41,208.19,23.776884]
[1733846570192,0.27607292,208.4,208.25,0.71980351]
[1733846570396,0.27607292,208.4,208.15,30.0]
[1733846570397,0.27607292,208.4,208.2,36.64709139]
[1733846570705,41.8308,208.48,208.22,35.92734223]
[1733846570706,2.87442713,208.42,208.22,35.92734223]
[1733846570995,0.42553192,208.39,208.28,35.92734223]
[1733846571182,0.42553192,208.39,208.24,35.92734223]
[1733846571377,0.42553192,208.39,208.25,0.71983615]
[1733846571594,0.42553192,208.39,208.27,23.776884]
[1733846571771,0.42553192,208.39,208.32,35.92734223]
[1733846572093,0.42553192,208.39,208.28,35.92734223]
[1733846572394,0.42553192,208.39,208.3,23.776884]
[1733846572567,0.42553192,208.39,208.18,15.0]
[1733846572767,0.42553192,208.39,208.21,35.92734223]
[1733846572990,0.42553192,208.39,208.24,35.92734223]
[1733846573164,0.42553192,208.39,208.25,0.71964833]
[1733846573369,0.42553192,208.39,208.26,35.92734223]
[1733846573579,0.42553192,208.39,208.25,0.71964833]
[1733846573580,0.42553192,208.39,208.32,35.92734223]
[1733846573781,0.42553192,208.39,208.34,35.92734223]
[1733846573993,0.42553192,208.39,208.38,35.92734223]
[1733846574195,0.42553192,208.39,208.38,59.70422623]
[1733846574604,0.42553192,208.39,208.37,0.7193137]
[1733846574771,0.42553192,208.39,208.37,23.776884]
[1733846574973,0.42553192,208.39,208.38,59.70422623]
[1733846575469,0.42553192,208.39,208.38,59.82971623]
[1733846575673,0.42553192,208.39,208.38,59.70422623]
[1733846575909,0.00621855,208.39,208.38,59.70422623]
[1733846576075,1.0976882,208.51,208.42,23.776884]
[1733846576279,1.0976882,208.51,208.49,35.92734223]
[1733846576601,1.0976882,208.51,208.5,0.7188455]
[1733846576806,1.0976882,208.51,208.49,35.92734223]
[1733846576807,1.0976882,208.51,208.43,35.92734223]
[1733846577014,1.0976882,208.51,208.32,35.92734223]
[1733846577186,1.0976882,208.51,208.34,35.92734223]
[1733846577386,1.0976882,208.51,208.29,12.0161]
[1733846577387,1.0976882,208.51,208.38,35.92734223]
[1733846577574,1.0976882,208.51,208.4,35.92734223]
[1733846577774,1.0976882,208.51,208.42,35.92734223]
[1733846577981,1.0976882,208.51,208.43,0.71918594]
[1733846578377,21.0976882,208.51,208.19,27.0161]
[1733846578590,0.27607292,208.5,208.25,35.92734223]
[1733846578792,0.27607292,208.5,208.26,0.71970479]
[1733846578995,22.8672901,208.46,208.26,0.71970479]
[1733846579205,0.27607292,208.45,208.27,35.92734223]
[1733846579375,0.27607292,208.45,208.28,0.71973855]
[1733846579579,24.05295692,208.45,208.28,0.71973855]
[1733846579795,23.776884,208.41,208.28,0.71973855]
[1733846580005,0.27607292,208.55,208.3,35.92734223]
[1733846580213,5.7532,208.58,208.32,35.92734223]
[1733846580214,0.27607292,208.5,208.32,35.92734223]
[1733846580508,0.27607292,208.55,208.34,35.92734223]
[1733846580710,0.27607292,208.59,208.4,35.92734223]
[1733846580915,0.27607292,208.67,208.44,35.92734223]
[1733846581071,15.0,208.58,208.36,35.92734223]
[1733846581271,19.72836051,208.68,208.38,35.92734223]
[1733846581272,0.27607292,208.57,208.38,35.92734223]
[1733846581476,2.90286374,208.62,208.41,312.0]
[1733846581679,0.27607292,208.61,208.42,0.71933778]
[1733846582173,15.0,208.56,208.29,35.92734223]
[1733846582399,0.27607292,208.5,208.27,35.92734223]
[1733846582613,0.27607292,208.5,208.33,35.92734223]
[1733846582782,1.0976882,208.51,208.34,0.7195925]
[1733846582987,1.0976882,208.51,208.37,35.92734223]
[1733846583172,1.0976882,208.51,208.38,0.71940839]
[1733846583403,1.0976882,208.51,208.49,35.92734223]
[1733846583638,15.0,208.77,208.5,0.71911368]
[1733846583811,0.27607292,208.76,208.6,35.92734223]
[1733846584130,15.0,208.77,208.61,0.71872209]
[1733846584301,11.8308,208.82,208.61,0.71872209]
[1733846584302,0.27607292,208.76,208.61,0.71872209]
[1733846584497,17.81232821,208.78,208.52,35.92734223]
[1733846584697,15.0,208.75,208.51,2.82239999]
[1733846585009,0.27607292,208.74,208.56,35.92734223]
[1733846585232,0.27607292,208.74,208.62,35.92734223]
[1733846585532,0.27607292,208.74,208.56,35.92734223]
[1733846585533,0.27607292,208.81,208.64,35.92734223]
[1733846585827,0.27607292,208.86,208.68,35.92734223]
[1733846586032,12.9281,208.93,208.72,35.92734223]
[1733846586033,0.27607292,208.88,208.72,35.92734223]
[1733846586197,15.0,208.82,208.74,35.92734223]
[1733846586401,0.27607292,208.96,208.8,35.92734223]
[1733846586620,0.27607292,209.03,208.82,35.92734223]
[1733846587133,0.27607292,209.03,208.88,35.92734223]
[1733846587336,0.27607292,209.09,208.88,35.92734223]
[1733846587531,0.27607292,209.09,208.88,59.82971623]
[1733846587737,0.27607292,209.09,208.88,35.92734223]
[1733846588039,0.27607292,209.09,208.88,59.82971623]
[1733846588195,15.0,209.07,208.83,30.0]
[1733846588397,0.27607292,209.06,208.76,35.92734223]
[1733846588615,15.0,209.02,208.78,35.92734223]
[1733846588820,0.27607292,209.01,208.76,39.49345833]
[1733846589020,15.0,209.02,208.76,38.77554119]
[1733846589323,15.0,208.94,208.73,0.7180368]
[1733846589541,0.27607292,208.93,208.73,0.7180368]
[1733846589727,20.0,208.87,208.7,0.71824399]
[1733846589896,0.27607292,208.86,208.7,36.64558622]
[1733846590096,20.0,208.87,208.74,35.92734223]
[1733846590326,1.0976882,208.89,208.75,0.71822937]
[1733846590625,1.0976882,208.89,208.74,35.92734223]
[1733846590626,20.0,208.85,208.74,35.92734223]
[1733846590831,24.17844692,208.84,208.66,2.90596767]
[1733846591036,24.17844692,208.84,208.66,0.71844078]
[1733846591037,20.0,208.79,208.66,0.71844078]
[1733846591207,15.0,208.86,208.6,0.71862863]
[1733846591208,20.12549,208.77,208.6,0.71862863]
[1733846591398,0.12549,208.75,208.61,35.92734223]
[1733846591631,20.0,208.75,208.62,0.71864808]
[1733846591810,0.12549,208.7,208.62,0.71859832]
[1733846592006,0.12549,208.7,208.58,0.71880334]
[1733846592212,0.12549,208.7,208.47,15.0]
[1733846592213,20.0,208.67,208.56,0.71881595]
[1733846592423,20.0,208.63,208.51,0.7189695]
[1733846592806,0.12549,208.61,208.47,0.71901804]
[1733846593017,0.27607292,208.62,208.47,0.71901804]
[1733846593220,0.27607292,208.68,208.52,35.92734223]
[1733846593442,20.0,208.72,208.56,35.92734223]
[1733846593604,20.0,208.72,208.57,0.71874018]
[1733846593811,2.81150728,208.73,208.57,0.71874018]
[1733846594019,0.27607292,208.71,208.51,23.776884]
[1733846594226,0.27607292,208.71,208.52,0.71893099]
[1733846594431,20.27607292,208.72,208.53,23.776884]
[1733846594610,0.27607292,208.72,208.56,35.92734223]
[1733846594934,1.15290272,208.79,208.62,35.92734223]
[1733846595138,0.8768298,208.79,208.63,0.71847766]
[1733846595317,2.86185147,208.78,208.63,0.71847766]
[1733846595636,15.0,208.72,208.48,35.92734223]
[1733846595848,0.27607292,208.71,208.41,0.7189142]
[1733846596053,15.0,208.64,208.42,35.92734223]
[1733846596216,0.27607292,208.63,208.43,0.71928467]
[1733846596541,20.27607292,208.63,208.44,35.92734223]
[1733846596851,20.0,208.55,208.38,35.92734223]
[1733846597140,20.0,208.55,208.29,12.7227]
[1733846597141,20.0,208.55,208.42,35.92734223]
[1733846597344,0.40156292,208.54,208.38,35.92734223]
[1733846597508,0.27607292,208.6,208.4,35.92734223]
[1733846597703,23.902374,208.54,208.35,0.71928404]
[1733846598018,0.27607292,208.6,208.23,47.93304223]
[1733846598019,20.0,208.41,208.27,0.71956921]
[1733846598224,20.0,208.41,208.24,312.71990691]
[1733846598426,0.27607292,208.4,208.28,0.71990691]
[1733846598750,20.0,208.46,208.31,35.92734223]
[1733846599051,0.12549,208.44,208.27,35.92734223]
[1733846599340,20.0,208.4,208.29,35.92734223]
[1733846599553,20.0,208.4,208.3,0.71974038]
[1733846599755,0.12549,208.49,208.31,35.92734223]
[1733846600041,0.27607292,208.51,208.35,35.92734223]
[1733846600250,15.27607292,208.55,208.27,0.12549]
[1733846600413,15.0,208.5,208.31,0.71952552]
[1733846600612,15.0,208.46,208.24,35.92734223]
[1733846600814,0.27607292,208.45,208.26,35.92734223]
[1733846601009,0.27607292,208.45,208.28,35.92734223]
[1733846601239,15.0,208.48,208.22,36.64703917]
[1733846601457,98.33849018,208.58,208.22,0.71969694]
[1733846601458,23.902374,208.43,208.22,0.71969694]
[1733846601642,15.0,208.4,208.16,36.64738325]
[1733846601952,38.902374,208.41,208.17,312.0]
[1733846601953,0.40156292,208.39,208.17,312.0]
[1733846602158,0.40156292,208.39,208.2,35.92734223]
[1733846602451,0.12549,208.33,208.14,35.92734223]
[1733846602748,20.0,208.3,208.18,35.92734223]
[1733846602913,24.05295692,208.42,208.22,35.92734223]
[1733846603116,0.27607292,208.48,208.31,35.92734223]
[1733846603450,0.27607292,208.48,208.33,35.92734223]
[1733846603742,30.0,208.49,208.2,55.92734223]
[1733846603957,0.27607292,208.48,208.25,20.0]
[1733846604120,0.27607292,208.48,208.3,35.92734223]
[1733846604318,2.8858221,208.54,208.35,23.776884]
[1733846604319,0.27607292,208.53,208.35,23.776884]
[1733846604536,0.27607292,208.52,208.37,23.776884]
[1733846604743,9.82563286,208.57,208.39,23.776884]
[1733846604955,0.27607292,208.56,208.32,35.92734223]
[1733846605250,3.17601578,208.56,208.36,23.776884]
[1733846605419,30.0,208.53,208.28,35.92734223]
[1733846605620,15.0,208.44,208.19,0.71973623]
[1733846605854,15.0,208.37,208.14,0.72003951]
[1733846606065,0.27607292,208.36,208.18,35.92734223]
[1733846606228,15.0,208.38,208.19,0.72007614]
[1733846606433,20.0,208.3,208.07,19.230303]
[1733846606664,20.0,208.18,207.98,35.92734223]
[1733846606977,20.0,208.18,207.92,12.0237]
[1733846606978,20.0,208.18,208.04,35.92734223]
[1733846607130,20.0,208.31,208.14,35.92734223]
[1733846607329,20.0,208.29,208.04,35.92734223]
[1733846607649,24.05295692,208.28,208.09,35.92734223]
[1733846607858,0.27607292,208.28,208.1,0.72043367]
[1733846608029,20.0,208.25,208.13,35.92734223]
[1733846608229,19.234567,208.29,208.2,35.92734223]
[1733846608454,19.234567,208.29,208.16,312.0]
[1733846608663,0.27607292,208.38,208.18,35.92734223]
[1733846608963,19.50018492,208.4,208.19,0.72005102]
[1733846609169,15.0,208.36,208.15,23.776884]
[1733846609334,0.27607292,208.35,208.17,23.776884]
[1733846609533,0.27607292,208.39,208.2,35.92734223]
[1733846609746,0.27607292,208.39,208.22,35.92734223]
[1733846610057,0.27607292,208.39,208.23,0.72000697]
[1733846610261,19.224112,208.4,208.28,23.776884]
[1733846610461,0.27607292,208.49,208.3,23.776884]
[1733846610671,0.27607292,208.51,208.39,23.776884]
[1733846610832,12.1148,208.66,208.4,0.71930672]
[1733846610833,15.0,208.55,208.4,0.71930672]
[1733846611034,15.0,208.55,208.33,23.776884]
[1733846611035,0.27607292,208.54,208.33,23.776884]
[1733846611256,15.27607292,208.54,208.3,36.64697391]
[1733846611435,2.92830485,208.46,208.22,63.33074223]
[1733846611641,0.27607292,208.45,208.28,35.92734223]
[1733846611867,15.0,208.44,208.19,35.92734223]
[1733846612069,0.12549,208.42,208.23,35.92734223]
[1733846612270,0.12549,208.42,208.24,0.7198773]
[1733846612569,2.92830485,208.46,208.27,35.92734223]
[1733846612757,0.27607292,208.45,208.29,35.92734223]
[1733846613062,0.27607292,208.45,208.3,36.646924]
[1733846613238,2.86150391,208.49,208.34,35.92734223]
[1733846613451,2.86150391,208.49,208.32,35.92734223]
[1733846613845,0.27607292,208.55,208.36,35.92734223]
[1733846614041,0.27607292,208.55,208.33,0.71963913]
[1733846614042,2.9035679,208.54,208.38,35.92734223]
[1733846614242,0.27607292,208.61,208.39,0.71936071]
[1733846614472,0.27607292,208.61,208.43,35.92734223]
[1733846614697,0.27607292,208.65,208.49,35.92734223]
[1733846614850,19.199518,208.68,208.53,35.92734223]
[1733846615158,0.27607292,208.74,208.57,35.92734223]
[1733846615363,0.8768298,208.75,208.59,35.92734223]
[1733846615672,0.8768298,208.75,208.61,35.92734223]
[1733846615984,0.8768298,208.75,208.67,35.92734223]
[1733846616349,0.8768298,208.75,208.61,35.92734223]
[1733846616755,0.8768298,208.75,208.57,35.92734223]
[1733846617120,0.8768298,208.75,208.61,35.92734223]
[1733846617382,0.27607292,208.74,208.57,35.92734223]
[1733846617547,15.27607292,208.74,208.57,35.92734223]
[1733846617748,30.27607292,208.74,208.5,0.71885017]
[1733846617969,30.0,208.68,208.43,35.92734223]
[1733846618175,15.0,208.6,208.39,35.92734223]
[1733846618480,12.1148,208.66,208.35,0.71937643]
[1733846618481,20.0,208.54,208.35,0.71937643]
[1733846618689,23.776884,208.52,208.35,36.64671866]
[1733846618848,0.12549,208.52,208.41,35.92734223]
[1733846619173,20.0,208.54,208.43,35.92734223]
[1733846619379,0.12549,208.64,208.47,35.92734223]
[1733846619569,23.902374,208.61,208.43,35.92734223]
[1733846619876,0.12549,208.57,208.36,0.71944524]
[1733846620081,0.40156292,208.57,208.36,0.71944524]
[1733846620255,15.40156292,208.57,208.36,0.71944524]
[1733846620453,15.0,208.56,208.35,35.92734223]
[1733846620781,20.0,208.45,208.35,35.92734223]
[1733846620997,0.27607292,208.55,208.23,70.23496662]
[1733846620998,0.27607292,208.44,208.31,35.92734223]
[1733846621204,0.27607292,208.51,208.37,35.92734223]
[1733846621417,20.0,208.49,208.41,35.92734223]
[1733846621606,0.27607292,208.61,208.44,35.92734223]
[1733846621772,0.27607292,208.65,208.44,35.92734223]
[1733846621969,0.27607292,208.65,208.48,35.92734223]
[1733846622203,0.27607292,208.65,208.44,35.92734223]
[1733846622497,0.27607292,208.65,208.48,35.92734223]
[1733846622882,0.27607292,208.72,208.56,35.92734223]
[1733846623086,0.27607292,208.73,208.6,35.92734223]
[1733846623282,15.0,208.78,208.58,35.92734223]
[1733846623483,15.0,208.78,208.54,35.92734223]
[1733846623484,0.27607292,208.74,208.54,35.92734223]
[1733846623698,0.27607292,208.74,208.58,35.92734223]
[1733846623993,19.46990992,208.74,208.58,35.92734223]
[1733846624198,19.46990992,208.74,208.56,35.92734223]
[1733846624399,0.86565272,208.75,208.58,35.92734223]
[1733846624577,0.86565272,208.75,208.62,35.92734223]
[1733846625713,0.86565272,208.75,208.64,35.92734223]
[1733846626079,0.86565272,208.75,208.68,35.92734223]
[1733846626387,0.86565272,208.75,208.7,35.92734223]
[1733846626709,0.86565272,208.75,208.66,35.92734223]
[1733846627107,0.86565272,208.75,208.64,35.92734223]
[1733846627309,0.86565272,208.75,208.62,36.64579548]
[1733846627681,0.86565272,208.75,208.63,0.71865586]
[1733846627885,0.86565272,208.75,208.65,35.92734223]
[1733846628206,0.86565272,208.75,208.69,35.92734223]
[1733846628430,0.86565272,208.75,208.71,35.92734223]
[1733846628584,0.86565272,208.75,208.67,35.92734223]